bitfinex/quotes_SOLUSD_20230120
["timestamp","ask_amount","ask_price","bid_price","bid_amount"]
[1674229024561,20.0,21.49,21.476,51.93]
[1674229025407,34.9,21.493,21.477,10.0]
[1674229025598,34.9,21.493,21.478,17.0]
[1674229025804,34.9,21.493,21.479,10.0]
[1674229026018,34.9,21.493,21.481,10.0]
[1674229026335,34.9,21.493,21.482,17.0]
[1674229026760,34.89,21.498,21.482,17.0]
[1674229027083,34.89,21.498,21.482,51.92]
[1674229027289,67.52901641,21.503,21.482,51.92]
[1674229027511,67.52901641,21.503,21.483,10.0]
[1674229027822,67.52901641,21.503,21.484,17.0]
[1674229028146,20.0,21.502,21.484,17.0]
[1674229028347,34.89,21.501,21.485,10.0]
[1674229028540,20.0,21.5,21.486,17.0]
[1674229028977,34.89,21.499,21.486,17.0]
[1674229030345,67.52901641,21.499,21.483,10.0]
[1674229030536,20.0,21.498,21.474,34.93]
[1674229030874,67.53901641,21.497,21.473,44.93]
[1674229031063,20.0,21.496,21.473,44.93]
[1674229031269,10.0,21.494,21.473,10.0]
[1674229031596,19.61,21.49,21.473,10.0]
[1674229031803,34.91,21.489,21.473,10.0]
[1674229032551,34.9,21.492,21.478,17.0]
[1674229032869,20.0,21.491,21.473,10.0]
[1674229033081,34.91,21.49,21.473,10.0]
[1674229033504,34.91,21.49,21.473,44.93]
[1674229034012,20.0,21.491,21.478,17.0]
[1674229034211,34.91,21.49,21.478,17.0]
[1674229034430,34.9,21.491,21.478,17.0]
[1674229034743,20.0,21.49,21.478,17.0]
[1674229034948,34.91,21.489,21.478,17.0]
[1674229035593,34.91,21.489,21.475,10.0]
[1674229035793,34.91,21.489,21.474,10.0]
[1674229036002,20.0,21.488,21.473,10.0]
[1674229036207,10.0,21.486,21.465,34.95]
[1674229036440,54.91,21.485,21.463,144.5527]
[1674229036840,54.91,21.485,21.477,20.0]
[1674229037172,10.0,21.484,21.463,144.5527]
[1674229037387,54.92,21.483,21.463,144.5527]
[1674229037619,54.92,21.483,21.469,17.0]
[1674229038018,54.92,21.483,21.463,144.5527]
[1674229038225,29.39,21.48,21.463,144.5527]
[1674229038441,34.92,21.479,21.463,109.6027]
[1674229038872,67.55901641,21.479,21.457,34.96]
[1674229039083,67.55901641,21.479,21.45,111.7569]
[1674229039084,20.0,21.478,21.455,115.2405]
[1674229039402,29.39,21.47,21.451,44.97]
[1674229039596,34.94,21.469,21.451,10.0]
[1674229039808,71.76501641,21.469,21.451,10.0]
[1674229040028,36.82501641,21.468,21.451,10.0]
[1674229040226,34.94,21.467,21.451,10.0]
[1674229040433,34.94,21.469,21.451,10.0]
[1674229040645,34.93,21.476,21.451,10.0]
[1674229040867,20.0,21.475,21.452,115.2405]
[1674229041082,34.93,21.474,21.453,10.0]
[1674229041276,20.0,21.473,21.453,10.0]
[1674229041488,34.94,21.472,21.453,10.0]
[1674229041702,20.0,21.471,21.453,10.0]
[1674229041910,34.94,21.47,21.453,10.0]
[1674229042121,10.0,21.469,21.453,10.0]
[1674229042432,34.94,21.468,21.453,10.0]
[1674229043191,34.94,21.47,21.455,10.0]
[1674229043378,34.94,21.47,21.456,17.0]
[1674229044238,34.94,21.47,21.457,10.0]
[1674229044446,34.94,21.47,21.458,17.0]
[1674229044858,34.94,21.47,21.459,10.0]
[1674229045090,34.94,21.47,21.46,17.0]
[1674229045288,101.10501641,21.47,21.46,17.0]
[1674229046446,10.0,21.469,21.455,10.0]
[1674229046631,34.94,21.468,21.447,10.0]
[1674229046848,54.94,21.468,21.447,10.0]
[1674229047283,46.82501641,21.467,21.447,10.0]
[1674229047599,91.77501641,21.466,21.447,10.0]
[1674229048003,36.82501641,21.465,21.447,10.0]
[1674229048338,54.95,21.464,21.447,10.0]
[1674229048741,91.77501641,21.464,21.447,10.0]
[1674229048957,10.0,21.463,21.447,10.0]
[1674229049165,54.95,21.462,21.447,10.0]
[1674229050022,54.95,21.462,21.448,17.0]
[1674229050727,53.95,21.462,21.448,17.0]
[1674229051067,53.95,21.462,21.449,10.0]
[1674229051390,53.95,21.462,21.45,17.0]
[1674229052957,53.95,21.462,21.451,10.0]
[1674229053271,53.95,21.462,21.452,17.0]
[1674229053482,19.0,21.462,21.452,17.0]
[1674229053691,20.0,21.467,21.452,17.0]
[1674229054011,34.95,21.466,21.452,17.0]
[1674229054338,20.0,21.465,21.449,10.0]
[1674229054548,34.95,21.464,21.449,10.0]
[1674229054744,20.0,21.463,21.449,10.0]
[1674229054954,34.95,21.462,21.449,10.0]
[1674229055161,20.0,21.461,21.449,10.0]
[1674229055378,34.96,21.46,21.449,10.0]
[1674229055582,20.0,21.459,21.449,10.0]
[1674229056127,20.0,21.459,21.451,10.0]
[1674229056342,20.0,21.468,21.452,17.0]
[1674229056645,34.94,21.467,21.452,17.0]
[1674229056857,34.94,21.467,21.453,10.0]
[1674229057069,20.0,21.466,21.454,17.0]
[1674229057272,34.95,21.465,21.454,17.0]
[1674229057487,36.82501641,21.473,21.454,17.0]
[1674229057488,34.94,21.469,21.454,17.0]
[1674229057707,20.0,21.468,21.455,10.0]
[1674229057885,20.0,21.468,21.456,17.0]
[1674229058098,20.0,21.468,21.457,10.0]
[1674229058315,54.94,21.471,21.458,17.0]
[1674229058533,54.94,21.471,21.457,10.0]
[1674229059498,34.94,21.471,21.457,10.0]
[1674229059676,34.94,21.471,21.458,17.0]
[1674229061040,20.0,21.47,21.458,17.0]
[1674229061251,34.94,21.469,21.458,17.0]
[1674229061483,34.94,21.469,21.456,17.0]
[1674229061674,20.0,21.468,21.456,17.0]
[1674229061884,34.94,21.467,21.455,17.0]
[1674229063675,34.94,21.467,21.456,10.0]
[1674229063881,148.64611641,21.477,21.458,10.0]
[1674229063882,34.94,21.471,21.458,10.0]
[1674229064097,20.0,21.47,21.459,17.0]
[1674229064307,34.94,21.469,21.459,17.0]
[1674229064943,20.0,21.47,21.46,10.0]
[1674229065153,20.0,21.475,21.461,17.0]
[1674229065378,34.93,21.474,21.462,10.0]
[1674229065690,20.0,21.473,21.463,17.0]
[1674229065894,34.94,21.472,21.463,17.0]
[1674229066214,20.0,21.471,21.463,17.0]
[1674229066741,20.0,21.475,21.463,17.0]
[1674229067052,34.93,21.474,21.463,17.0]
[1674229067273,20.0,21.473,21.463,17.0]
[1674229067575,34.94,21.472,21.463,17.0]
[1674229067779,20.0,21.471,21.463,17.0]
[1674229068205,20.0,21.475,21.463,17.0]
[1674229068423,34.93,21.474,21.463,17.0]
[1674229068624,20.0,21.473,21.46,10.0]
[1674229068834,34.94,21.472,21.46,10.0]
[1674229069026,20.0,21.471,21.46,10.0]
[1674229069237,34.94,21.47,21.46,10.0]
[1674229070096,34.94,21.47,21.461,17.0]
[1674229070310,20.0,21.471,21.461,17.0]
[1674229070499,20.0,21.475,21.461,17.0]
[1674229070712,34.93,21.474,21.461,17.0]
[1674229071242,20.0,21.473,21.461,17.0]
[1674229071570,34.94,21.472,21.461,17.0]
[1674229071785,20.0,21.471,21.461,17.0]
[1674229072311,20.0,21.475,21.461,17.0]
[1674229072518,34.93,21.474,21.461,17.0]
[1674229072835,20.0,21.473,21.461,17.0]
[1674229073032,34.94,21.472,21.461,17.0]
[1674229073230,20.0,21.471,21.461,17.0]
[1674229073675,20.0,21.475,21.461,17.0]
[1674229073862,34.93,21.474,21.461,17.0]
[1674229074075,20.0,21.473,21.461,17.0]
[1674229074386,34.94,21.472,21.461,17.0]
[1674229074592,20.0,21.471,21.461,17.0]
[1674229075268,20.0,21.475,21.461,17.0]
[1674229075479,34.93,21.474,21.461,17.0]
[1674229075670,20.0,21.473,21.461,17.0]
[1674229075880,34.94,21.472,21.461,17.0]
[1674229076091,20.0,21.471,21.461,17.0]
[1674229076721,20.0,21.475,21.461,17.0]
[1674229076931,34.93,21.474,21.462,10.0]
[1674229077147,20.0,21.473,21.463,17.0]
[1674229077359,34.92,21.479,21.463,17.0]
[1674229077562,29.34,21.49,21.463,17.0]
[1674229077563,34.92,21.482,21.463,51.95]
[1674229077771,34.92,21.482,21.464,10.0]
[1674229078193,34.92,21.482,21.465,17.0]
[1674229078421,34.92,21.482,21.466,34.95]
[1674229078628,34.92,21.482,21.468,10.0]
[1674229078629,20.0,21.481,21.468,10.0]
[1674229078835,20.0,21.481,21.469,17.0]
[1674229081152,20.0,21.481,21.466,10.0]
[1674229081153,34.92,21.48,21.466,10.0]
[1674229082288,34.92,21.48,21.467,17.0]
[1674229083577,34.92,21.48,21.465,17.0]
[1674229084075,0.96,21.479,21.465,17.0]
[1674229084291,34.93,21.478,21.465,17.0]
[1674229084609,0.96,21.477,21.465,17.0]
[1674229084811,34.93,21.476,21.465,17.0]
[1674229085021,0.96,21.475,21.465,17.0]
[1674229085554,0.96,21.475,21.464,10.0]
[1674229085764,34.92,21.48,21.464,10.0]
[1674229085975,0.96,21.479,21.464,10.0]
[1674229086198,34.93,21.478,21.464,44.95]
[1674229086516,20.0,21.481,21.464,44.95]
[1674229086729,34.92,21.48,21.464,44.95]
[1674229087046,20.0,21.481,21.465,17.0]
[1674229087229,20.0,21.481,21.466,44.95]
[1674229087441,20.0,21.481,21.468,10.0]
[1674229087652,20.0,21.481,21.469,17.0]
[1674229088066,20.0,21.481,21.469,51.94]
[1674229088405,34.91,21.487,21.469,51.94]
[1674229088613,34.9,21.493,21.469,51.94]
[1674229088931,34.9,21.493,21.47,10.0]
[1674229089143,34.9,21.493,21.471,51.94]
[1674229089343,34.9,21.493,21.472,10.0]
[1674229089564,10.96,21.492,21.473,17.0]
[1674229089765,34.9,21.491,21.473,17.0]
[1674229089981,10.0,21.49,21.473,17.0]
[1674229090296,34.91,21.489,21.473,17.0]
[1674229090502,0.96,21.488,21.474,10.0]
[1674229090722,34.91,21.487,21.475,17.0]
[1674229091247,0.96,21.486,21.475,17.0]
[1674229091656,0.96,21.486,21.476,10.0]
[1674229091863,34.91,21.489,21.477,17.0]
[1674229092400,20.0,21.49,21.477,17.0]
[1674229092593,20.0,21.49,21.478,10.0]
[1674229092803,20.0,21.492,21.479,17.0]
[1674229093010,34.9,21.491,21.479,17.0]
[1674229093223,20.0,21.49,21.479,17.0]
[1674229093654,20.0,21.49,21.48,10.0]
[1674229093872,54.9,21.493,21.481,17.0]
[1674229094271,34.89,21.498,21.481,17.0]
[1674229094602,29.34,21.51,21.483,10.0]
[1674229094922,29.34,21.51,21.485,10.0]
[1674229095237,34.88,21.504,21.486,17.0]
[1674229095639,10.0,21.503,21.486,17.0]
[1674229095975,29.55,21.5,21.48,10.0]
[1674229096167,29.55,21.5,21.473,114.6243]
[1674229096168,34.89,21.499,21.473,114.6243]
[1674229096385,10.0,21.498,21.473,124.6243]
[1674229096593,54.9,21.497,21.473,124.6243]
[1674229097019,0.96,21.496,21.473,124.6243]
[1674229097338,34.9,21.495,21.473,124.6243]
[1674229097669,29.55,21.49,21.47,10.0]
[1674229097872,10.0,21.488,21.47,10.0]
[1674229098181,54.91,21.487,21.47,10.0]
[1674229098579,10.0,21.486,21.467,112.4223]
[1674229098793,54.91,21.485,21.463,44.95]
[1674229099111,54.91,21.485,21.463,10.0]
[1674229099317,10.0,21.484,21.463,10.0]
[1674229099532,29.34,21.48,21.463,10.0]
[1674229099848,34.92,21.479,21.463,10.0]
[1674229100267,0.96,21.478,21.463,10.0]
[1674229100482,34.93,21.477,21.463,10.0]
[1674229100793,0.96,21.478,21.465,17.0]
[1674229101007,0.96,21.478,21.466,10.0]
[1674229101218,34.92,21.48,21.467,17.0]
[1674229101446,34.92,21.48,21.468,10.0]
[1674229101662,34.92,21.48,21.469,17.0]
[1674229105013,20.0,21.481,21.469,17.0]
[1674229105226,615.64729542,21.514,21.47,65.46]
[1674229105227,34.91,21.487,21.47,65.46]
[1674229105437,34.9,21.493,21.471,10.0]
[1674229105761,71.71939321,21.493,21.473,10.0]
[1674229105978,71.71939321,21.493,21.474,51.93]
[1674229106294,71.71939321,21.493,21.474,17.0]
[1674229106601,29.34,21.49,21.474,17.0]
[1674229106797,54.91,21.489,21.474,17.0]
[1674229107011,10.0,21.488,21.474,17.0]
[1674229107337,10.0,21.486,21.474,17.0]
[1674229107532,54.91,21.485,21.464,44.95]
[1674229107949,29.39,21.48,21.464,10.0]
[1674229108174,54.92,21.479,21.464,10.0]
[1674229108382,10.0,21.478,21.464,10.0]
[1674229108592,55.89,21.477,21.464,10.0]
[1674229109229,55.89,21.477,21.462,10.0]
[1674229109659,55.89,21.477,21.454,153.5564]
[1674229109840,55.89,21.477,21.454,118.5864]
[1674229110501,10.0,21.476,21.454,118.5864]
[1674229110691,54.93,21.475,21.454,118.5864]
[1674229111114,10.0,21.474,21.454,118.5864]
[1674229111328,54.93,21.473,21.454,118.5864]
[1674229112074,54.93,21.473,21.458,17.0]
[1674229117313,20.0,21.473,21.459,10.0]
[1674229117526,34.92,21.479,21.46,17.0]
[1674229117737,34.92,21.479,21.461,34.95]
[1674229117956,34.92,21.482,21.462,17.0]
[1674229118169,20.0,21.481,21.463,10.0]
[1674229118380,34.92,21.48,21.464,17.0]
[1674229118906,0.96,21.479,21.464,17.0]
[1674229119114,34.93,21.478,21.464,17.0]
[1674229119521,34.92,21.479,21.464,17.0]
[1674229120469,10.0,21.478,21.464,17.0]
[1674229120679,34.93,21.477,21.464,17.0]
[1674229121844,34.93,21.477,21.462,17.0]
[1674229122277,10.0,21.476,21.462,17.0]
[1674229122587,34.93,21.475,21.462,17.0]
[1674229122777,34.93,21.477,21.462,17.0]
[1674229123199,34.92,21.479,21.462,17.0]
[1674229123630,10.0,21.478,21.462,17.0]
[1674229123845,34.93,21.477,21.462,17.0]
[1674229124053,34.93,21.477,21.456,34.96]
[1674229124273,10.0,21.475,21.452,44.97]
[1674229124495,29.39,21.47,21.452,44.97]
[1674229124681,34.94,21.469,21.452,10.0]
[1674229126167,10.0,21.468,21.451,10.0]
[1674229126358,35.9,21.467,21.451,10.0]
[1674229126792,0.96,21.467,21.451,10.0]
[1674229127004,29.39,21.47,21.451,10.0]
[1674229127005,35.91,21.466,21.451,10.0]
[1674229127211,0.96,21.466,21.451,10.0]
[1674229127424,34.95,21.465,21.451,10.0]
[1674229127644,0.96,21.464,21.452,17.0]
[1674229127843,0.96,21.464,21.453,10.0]
[1674229128062,0.96,21.464,21.454,17.0]
[1674229128276,0.96,21.464,21.455,10.0]
[1674229128475,34.94,21.469,21.456,17.0]
[1674229128911,34.94,21.471,21.457,10.0]
[1674229129122,34.94,21.471,21.458,17.0]
[1674229130387,0.96,21.47,21.458,17.0]
[1674229130586,34.94,21.469,21.459,10.0]
[1674229130924,34.94,21.469,21.46,17.0]
[1674229131221,34.94,21.471,21.461,10.0]
[1674229131418,34.94,21.471,21.462,17.0]
[1674229132379,34.93,21.474,21.462,17.0]
[1674229132785,34.93,21.478,21.462,17.0]
[1674229133751,34.92,21.479,21.463,10.0]
[1674229133938,0.96,21.478,21.465,10.0]
[1674229134147,35.89,21.477,21.465,10.0]
[1674229134378,0.96,21.477,21.466,17.0]
[1674229134576,34.92,21.48,21.467,10.0]
[1674229134785,0.96,21.479,21.468,17.0]
[1674229135107,34.93,21.478,21.468,17.0]
[1674229135531,0.96,21.477,21.466,17.0]
[1674229135845,34.92,21.48,21.466,17.0]
[1674229136041,0.96,21.479,21.466,17.0]
[1674229136254,34.93,21.478,21.466,17.0]
[1674229136685,0.96,21.477,21.466,17.0]
[1674229136894,34.92,21.48,21.466,17.0]
[1674229137087,0.96,21.479,21.466,17.0]
[1674229137299,34.93,21.478,21.466,17.0]
[1674229137526,0.96,21.477,21.466,17.0]
[1674229137935,34.92,21.48,21.466,17.0]
[1674229138147,0.96,21.479,21.466,17.0]
[1674229138478,34.93,21.478,21.466,17.0]
[1674229138869,0.96,21.477,21.466,17.0]
[1674229139079,0.96,21.476,21.466,17.0]
[1674229139288,0.96,21.476,21.463,10.0]
[1674229139607,0.96,21.476,21.46,34.96]
[1674229139822,34.93,21.475,21.456,152.7338]
[1674229140037,20.96,21.474,21.456,117.7738]
[1674229140250,34.93,21.473,21.456,117.7738]
[1674229140447,20.0,21.472,21.456,117.7738]
[1674229140673,34.94,21.471,21.456,117.7738]
[1674229140869,20.0,21.47,21.456,117.7738]
[1674229141188,29.56,21.49,21.461,10.0]
[1674229141404,20.0,21.482,21.462,52.91]
[1674229141605,54.92,21.482,21.462,52.91]
[1674229142258,54.92,21.482,21.463,10.0]
[1674229142448,54.92,21.482,21.465,10.0]
[1674229142869,54.92,21.482,21.466,17.0]
[1674229143083,54.92,21.482,21.467,10.0]
[1674229143391,54.92,21.482,21.468,17.0]
[1674229143607,54.92,21.482,21.469,10.0]
[1674229143806,54.92,21.482,21.47,17.0]
[1674229144018,34.92,21.482,21.471,10.0]
[1674229144254,34.91,21.487,21.472,17.0]
[1674229144561,109.0455,21.494,21.473,34.93]
[1674229144562,143.6602,21.493,21.473,34.93]
[1674229144757,20.0,21.492,21.474,17.0]
[1674229144971,34.9,21.491,21.475,10.0]
[1674229145178,20.0,21.49,21.476,17.0]
[1674229145393,34.91,21.489,21.476,17.0]
[1674229145599,0.96,21.488,21.476,17.0]
[1674229145814,34.91,21.487,21.474,17.0]
[1674229146020,20.96,21.486,21.474,17.0]
[1674229146441,34.91,21.485,21.474,17.0]
[1674229146670,20.0,21.484,21.474,17.0]
[1674229147292,20.0,21.489,21.474,17.0]
[1674229147495,34.91,21.488,21.474,17.0]
[1674229147706,20.0,21.487,21.474,17.0]
[1674229147930,34.91,21.486,21.474,17.0]
[1674229148149,20.0,21.485,21.474,17.0]
[1674229148769,20.0,21.489,21.474,17.0]
[1674229148979,34.91,21.488,21.474,17.0]
[1674229149312,30.0,21.487,21.474,17.0]
[1674229149512,34.91,21.486,21.472,17.0]
[1674229149709,20.0,21.485,21.472,17.0]
[1674229150138,0.96,21.484,21.472,17.0]
[1674229150462,34.91,21.486,21.472,17.0]
[1674229150675,34.91,21.49,21.473,10.0]
[1674229151078,34.91,21.49,21.474,17.0]
[1674229151509,34.91,21.49,21.475,10.0]
[1674229151719,34.91,21.49,21.476,17.0]
[1674229152785,34.9,21.492,21.477,10.0]
[1674229152978,20.0,21.491,21.478,17.0]
[1674229153195,20.0,21.491,21.479,10.0]
[1674229153399,591.2,21.512,21.479,10.0]
[1674229153400,34.89,21.498,21.48,51.92]
[1674229153725,182.84672655,21.504,21.48,51.92]
[1674229153932,29.34,21.5,21.481,10.0]
[1674229154136,34.39272655,21.498,21.482,17.0]
[1674229154345,54.9,21.497,21.482,17.0]
[1674229154559,54.9,21.497,21.477,10.0]
[1674229154757,44.39272655,21.496,21.477,10.0]
[1674229154970,54.9,21.495,21.477,10.0]
[1674229155200,89.29272655,21.495,21.477,10.0]
[1674229155387,143.69702655,21.494,21.475,124.1783]
[1674229155600,10.0,21.492,21.475,124.1783]
[1674229155929,54.9,21.491,21.475,124.1783]
[1674229156142,54.9,21.491,21.476,17.0]
[1674229158674,54.9,21.491,21.474,10.0]
[1674229158886,10.0,21.489,21.468,117.4616]
[1674229159103,55.87,21.488,21.468,117.4616]
[1674229159418,10.0,21.487,21.468,117.4616]
[1674229159605,35.87,21.486,21.468,117.4616]
[1674229159817,10.0,21.484,21.468,117.4616]
[1674229160028,55.88,21.483,21.468,117.4616]
[1674229160457,55.88,21.483,21.466,10.0]
[1674229160673,164.7473,21.483,21.462,124.3362]
[1674229160878,10.0,21.482,21.462,124.3362]
[1674229161093,55.88,21.481,21.462,124.3362]
[1674229161413,19.71,21.48,21.462,124.3362]
[1674229161642,35.88,21.479,21.462,10.0]
[1674229162347,20.0,21.478,21.455,44.96]
[1674229162550,34.93,21.477,21.455,10.0]
[1674229162880,30.0,21.476,21.455,44.96]
[1674229163081,35.89,21.475,21.455,44.96]
[1674229163289,20.0,21.474,21.455,10.0]
[1674229163495,34.93,21.473,21.455,10.0]
[1674229163833,20.0,21.472,21.455,10.0]
[1674229164154,34.94,21.471,21.455,10.0]
[1674229164356,20.0,21.47,21.455,10.0]
[1674229164853,20.0,21.47,21.456,17.0]
[1674229165066,20.0,21.47,21.457,10.0]
[1674229165277,20.0,21.47,21.458,17.0]
[1674229165721,34.94,21.469,21.458,17.0]
[1674229167905,34.94,21.469,21.456,17.0]
[1674229168118,34.94,21.469,21.455,10.0]
[1674229168855,10.0,21.468,21.455,10.0]
[1674229169186,34.94,21.467,21.454,124.3362]
[1674229170012,34.94,21.467,21.451,10.0]
[1674229170428,0.96,21.466,21.449,34.97]
[1674229170641,10.0,21.464,21.448,10.0]
[1674229170850,54.95,21.463,21.448,10.0]
[1674229171169,10.0,21.462,21.447,119.4653]
[1674229171389,54.95,21.461,21.447,119.4653]
[1674229171796,54.95,21.461,21.448,17.0]
[1674229172545,54.95,21.461,21.449,10.0]
[1674229172763,54.95,21.461,21.45,17.0]
[1674229173899,20.0,21.461,21.45,17.0]
[1674229174109,10.0,21.465,21.45,17.0]
[1674229174333,54.95,21.464,21.45,17.0]
[1674229174737,10.0,21.463,21.45,17.0]
[1674229174949,54.95,21.462,21.45,17.0]
[1674229175159,20.0,21.461,21.45,17.0]
[1674229175368,34.96,21.46,21.45,17.0]
[1674229175895,34.95,21.463,21.45,17.0]
[1674229176107,20.0,21.462,21.45,17.0]
[1674229176323,34.95,21.461,21.45,17.0]
[1674229176543,20.0,21.46,21.45,17.0]
[1674229177065,34.96,21.459,21.45,17.0]
[1674229177276,20.0,21.46,21.45,17.0]
[1674229177482,20.0,21.463,21.45,17.0]
[1674229177676,34.95,21.462,21.451,10.0]
[1674229177887,20.0,21.461,21.452,17.0]
[1674229178320,34.96,21.46,21.45,17.0]
[1674229178743,34.96,21.46,21.449,10.0]
[1674229179471,20.0,21.461,21.449,10.0]
[1674229179688,20.0,21.466,21.449,10.0]
[1674229179887,34.95,21.465,21.449,10.0]
[1674229180098,20.0,21.464,21.449,10.0]
[1674229180331,34.95,21.463,21.45,17.0]
[1674229180638,34.95,21.463,21.451,10.0]
[1674229180639,20.0,21.462,21.451,10.0]
[1674229180845,20.0,21.462,21.452,17.0]
[1674229181045,20.0,21.468,21.453,10.0]
[1674229181260,34.94,21.467,21.454,17.0]
[1674229181471,20.0,21.466,21.454,17.0]
[1674229181687,34.95,21.465,21.454,17.0]
[1674229182011,20.0,21.464,21.454,17.0]
[1674229182221,34.94,21.47,21.454,17.0]
[1674229182418,20.0,21.469,21.454,17.0]
[1674229182742,34.94,21.468,21.454,17.0]
[1674229182929,34.94,21.471,21.454,17.0]
[1674229183138,20.0,21.47,21.454,51.97]
[1674229183585,20.0,21.47,21.455,10.96]
[1674229183908,20.0,21.473,21.456,51.96]
[1674229184443,34.93,21.474,21.456,51.96]
[1674229184640,34.92,21.479,21.457,30.96]
[1674229184848,34.92,21.479,21.459,10.0]
[1674229185057,34.92,21.479,21.46,17.0]
[1674229185489,34.92,21.479,21.461,10.0]
[1674229185708,34.92,21.479,21.462,17.0]
[1674229187683,34.92,21.479,21.463,10.0]
[1674229187894,34.92,21.479,21.464,17.0]
[1674229188213,34.92,21.479,21.465,10.0]
[1674229188414,34.92,21.479,21.466,17.0]
[1674229188628,34.92,21.482,21.466,17.0]
[1674229189056,20.0,21.481,21.466,17.0]
[1674229189280,35.88,21.48,21.466,17.0]
[1674229190642,10.0,21.479,21.466,17.0]
[1674229190951,34.93,21.478,21.461,34.95]
[1674229191155,20.0,21.477,21.457,122.7441]
[1674229191376,34.93,21.476,21.457,122.7441]
[1674229191602,30.0,21.475,21.457,122.7441]
[1674229191796,34.93,21.474,21.457,122.7441]
[1674229192009,20.96,21.473,21.457,122.7441]
[1674229192326,34.94,21.472,21.457,122.7441]
[1674229192638,30.96,21.471,21.457,112.7441]
[1674229192849,34.94,21.47,21.457,112.7441]
[1674229193169,0.96,21.469,21.457,112.7441]
[1674229193479,34.94,21.468,21.457,112.7441]
[1674229193886,34.94,21.47,21.457,112.7441]
[1674229194089,34.94,21.47,21.458,17.0]
[1674229195160,34.94,21.47,21.458,27.0]
[1674229198930,54.94,21.471,21.459,10.0]
[1674229199153,54.94,21.471,21.46,17.0]
[1674229200289,20.0,21.471,21.46,17.0]
[1674229201655,20.0,21.474,21.461,10.0]